fUSD/lending_fUSD_20250313
["ID","MTS","AMOUNT","RATE_DAILY","PERIOD"]
[356043064,1741828247003,-197.02,0.00012787,2]
[356043065,1741828247014,-743.29091,0.0001295,8]
[356043066,1741828247026,-550.0,0.00013,2]
[356043067,1741828247037,-151.44,0.00013,2]
[356043068,1741828247049,-151.44,0.00013,2]
[356043069,1741828247059,-151.44,0.00013,2]
[356043070,1741828247068,-151.44,0.00013,2]
[356043071,1741828247079,-151.44,0.00013,2]
[356043072,1741828247088,-151.44,0.00013,2]
[356043073,1741828247097,-151.44,0.00013,2]
[356043074,1741828247107,-151.44,0.00013,2]
[356043075,1741828247120,-151.44,0.00013,2]
[356043076,1741828247130,-151.44,0.00013,2]
[356043077,1741828247139,-151.44,0.00013,2]
[356043078,1741828247148,-151.44,0.00013,2]
[356043079,1741828247158,-151.44,0.00013,2]
[356043080,1741828247167,-151.44,0.00013,2]
[356043081,1741828247177,-151.44,0.00013,2]
[356043082,1741828247187,-151.44,0.00013,2]
[356043083,1741828247198,-151.44,0.00013,2]
[356043084,1741828247208,-151.44,0.00013,2]
[356043085,1741828247217,-151.44,0.00013,2]
[356043086,1741828247226,-151.44,0.00013,2]
[356043087,1741828247235,-151.44,0.00013,2]
[356043088,1741828247244,-500.0,0.00013013,2]
[356043089,1741828247254,-1000.0,0.00013056,2]
[356043090,1741828247263,-1247.14,0.00013056,2]
[356043091,1741828247274,-166.58,0.00013056,2]
[356043092,1741828247283,-949.62280782,0.00013111,2]
[356043093,1741828247292,-4832.56706513,0.00013209,2]
[356043094,1741828247302,-500.0,0.00013287,2]
[356043095,1741828247311,-587.51,0.00013561,2]
[356043096,1741828247320,-157.56,0.00013663,2]
[356043097,1741828247329,-200.0,0.00013699,2]
[356043098,1741828247339,-500.0,0.00013699,2]
[356043099,1741828247348,-241.67289876,0.00013699,2]
[356043100,1741828247358,-452.20908674,0.00013699,2]
[356043101,1741828247367,-269.63318556,0.00013734,2]
[356043102,1741828247376,-175.11,0.00013916,2]
[356043103,1741828247385,-5679.14070343,0.00014,15]
[356043104,1741828247394,-317.53292131,0.00014072,2]
[356043105,1741828247403,-157.56,0.00014346,2]
[356043106,1741828247412,-666.0,0.00014671,2]
[356043107,1741828247422,-150.934,0.00014672,2]
[356043108,1741828247432,-2033.0,0.00014672,2]
[356043109,1741828247441,-571.0,0.00014672,2]
[356043110,1741828247450,-150.0,0.00014672,2]
[356043111,1741828247459,-1418.0,0.00014672,2]
[356043112,1741828247468,-641.0,0.00014672,2]
[356043113,1741828247477,-224.495,0.00014672,2]
[356043114,1741828247486,-949.62280782,0.00014767,2]
[356043115,1741828247495,-1111.51,0.00014793,2]
[356043116,1741828247504,-4832.56706513,0.00014863,2]
[356043117,1741828247513,-600.0,0.00015,2]
[356043118,1741828247524,-362.03153926,0.0001501,2]
[356043119,1741828247533,-169.06,0.00015068,2]
[356043120,1741828247542,-269.63318556,0.00015279,2]
[356043121,1741828247551,-175.11,0.00015462,2]
[356043122,1741828247560,-155.94,0.00015597,2]
[356043123,1741828247569,-151.0,0.00015703,2]
[356043124,1741828247578,-317.53292131,0.00016159,2]
[356043125,1741828247587,-949.62280782,0.00016422,2]
[356043126,1741828247596,-169.06,0.00016438,2]
[356043127,1741828247605,-512.22,0.00016493,30]
[356043128,1741828247614,-4832.56706513,0.00016518,2]
[356043129,1741828247623,-1534.27716014,0.000168,2]
[356043130,1741828247632,-269.63318556,0.00016824,2]
[356043131,1741828247641,-941.38,0.00016922,2]
[356043132,1741828247650,-9995.97,0.00016922,2]
[356043133,1741828247659,-1119.44,0.00016922,2]
[356043134,1741828247669,-1111.51,0.00016985,2]
[356043135,1741828247678,-650.0,0.00017,2]
[356043136,1741828247687,-175.11,0.00017008,2]
[356043137,1741828247696,-1481.65,0.00017672,2]
[356043138,1741828247705,-1418.0,0.00017672,2]
[356043139,1741828247714,-641.0,0.00017672,2]
[356043140,1741828247724,-949.62280782,0.00018078,2]
[356043141,1741828247733,-200.0,0.00018082,2]
[356043142,1741828247743,-4832.56706513,0.00018172,2]
[356043143,1741828247751,-1000.0,0.00018185,2]
[356043144,1741828247761,-317.53292131,0.00018245,2]
[356043145,1741828247770,-269.63318556,0.00018369,2]
[356043146,1741828247779,-1000.0,0.00018433,2]
[356043147,1741828247788,-175.11,0.00018554,2]
[356043148,1741828247797,-153.78,0.000186,2]
[356043149,1741828247806,-151.0,0.00018703,2]
[356043150,1741828247815,-155.94,0.00018716,2]
[356043151,1741828247825,-700.0,0.00019,2]
[356043152,1741828247834,-1000.0,0.00019049,2]
[356043153,1741828247843,-1111.51,0.00019176,2]
[356043154,1741828247852,-1000.0,0.00019178,2]
[356043155,1741828247861,-949.62280782,0.00019733,2]
[356043156,1741828247870,-4832.56706513,0.00019827,2]
[356043157,1741828247880,-269.63318556,0.00019914,2]
[356043158,1741828247890,-153.12996687,0.0002,2]
[356043159,1741828247899,-34184.0,0.0002,14]
[356043160,1741828247908,-317.53292131,0.00020331,2]
[356043161,1741828247917,-1418.0,0.00020672,2]
[356043162,1741828247926,-641.0,0.00020672,2]
[356043163,1741828247936,-512.22,0.00020971,30]
[356043164,1741828247945,-750.0,0.00021,2]
[356043165,1741828247955,-1111.51,0.00021367,2]
[356043166,1741828247964,-949.62280782,0.00021389,2]
[356043167,1741828247973,-269.63318556,0.00021459,2]
[356043168,1741828247982,-4832.56706513,0.00021481,2]
[356043169,1741828247991,-151.0,0.00021703,2]
[356043170,1741828248000,-317.53292131,0.00022417,2]
[356043171,1741828248009,-151.44,0.0002299,2]
[356043172,1741828248020,-200.0,0.00023,2]
[356043173,1741828248030,-5800.0,0.00023,2]
[356043174,1741828248039,-800.0,0.00023,2]
[356043175,1741828248049,-269.63318556,0.00023003,3]
[356043176,1741828248058,-949.62280782,0.00023044,2]
[356043177,1741828248067,-4832.56706513,0.00023136,2]
[356043178,1741828248076,-1079.0,0.000235,2]
[356043179,1741828248085,-1111.51,0.00023559,2]
[356043180,1741828248095,-191.1,0.00023596,4]
[356043181,1741828248104,-1745.85858375,0.00023596,4]
[356043184,1741828322306,-150.0,9.638e-05,2]
[356043185,1741828322329,-39.73557876,9.691e-05,2]
[356043192,1741828365496,-160.25391245,9.642e-05,2]
[356043240,1741828723252,4841.49861175,0.0002,120]
[356043248,1741828953988,-189.735579,9.627e-05,2]
[356043249,1741828954010,-550.0,9.675e-05,2]
[356043250,1741828954033,-150.0,9.675e-05,2]
[356043251,1741828954055,-2221.79509404,9.7e-05,2]
[356043252,1741828954077,-308.02346232,9.744e-05,2]
[356043253,1741828954099,-2221.79509404,9.795e-05,2]
[356043254,1741828954122,-150.0,9.799e-05,2]
[356043255,1741828954145,-300.0,9.799e-05,2]
[356043256,1741828954169,-833.3972,9.8e-05,2]
[356043257,1741828954191,-37472.7605,9.8e-05,2]
[356043258,1741828954215,-291.7658,9.8e-05,2]
[356043259,1741828954239,-308.02346232,9.82e-05,2]
[356043260,1741828954263,-4616.11247134,9.885e-05,2]
[356043261,1741828954286,-308.02346232,9.895e-05,2]
[356043262,1741828954308,-21089.3455,9.895e-05,2]
[356043263,1741828954333,-229.7288,9.895e-05,2]
[356043264,1741828954360,-2517.4522,9.9e-05,2]
[356043265,1741828954384,-905.9391,9.9e-05,2]
[356043266,1741828954409,-500.0,9.999e-05,2]
[356043268,1741828974792,337.399451,9.572e-05,2]
[356043269,1741828975108,337.399451,9.846e-05,2]
[356043270,1741828975446,337.399451,9.997e-05,2]
[356043271,1741828975736,337.399451,9.997e-05,2]
[356043272,1741828976069,337.399451,9.997e-05,2]
[356043274,1741828987664,-207.41014295,0.0001,2]
[356043275,1741828990957,205.076326,9.572e-05,2]
[356043277,1741829108402,192736.61855067,0.0001,2]
[356043294,1741829432520,-341.7,9.8e-05,3]
[356043295,1741829432531,-500.0,9.8e-05,3]
[356043296,1741829432542,-59320.97342322,9.8e-05,3]
[356043297,1741829432554,-2500.0,9.9e-05,2]
[356043298,1741829432563,-307.74164499,9.973e-05,2]
[356043299,1741829432572,-160.33274276,9.973e-05,2]
[356043300,1741829432582,-160.38157821,9.973e-05,2]
[356043301,1741829432591,-210.21250233,9.973e-05,2]
[356043302,1741829432600,-156.87684379,9.973e-05,2]
[356043303,1741829432609,-363.68292464,9.973e-05,2]
[356043304,1741829432619,-160.95183032,9.973e-05,2]
[356043305,1741829432628,-500.0,9.999e-05,2]
[356043306,1741829432637,-295.59080029,9.999e-05,2]
[356043307,1741829432647,-263.54523281,9.999e-05,2]
[356043308,1741829432656,-500.0,9.999e-05,2]
[356043309,1741829432665,-500.0,9.999e-05,2]
[356043310,1741829432674,-500.0,9.999e-05,2]
[356043311,1741829432683,-500.0,9.999e-05,2]
[356043312,1741829432692,-620.37838994,9.999e-05,2]
[356043313,1741829432701,-500.0,9.999e-05,2]
[356043314,1741829432710,-500.0,9.999e-05,2]
[356043315,1741829432720,-500.0,9.999e-05,2]
[356043316,1741829432730,-500.0,9.999e-05,2]
[356043317,1741829432739,-500.0,9.999e-05,2]
[356043318,1741829432755,-300.0,9.999e-05,2]
[356043319,1741829432766,-303.58891905,0.0001,2]
[356043320,1741829432778,-176438.06226272,0.0001,2]
[356043321,1741829432821,-3983.04186657,0.0001,2]
[356043322,1741829432832,-2999.65,0.0001,2]
[356043323,1741829432843,-14638.09160648,0.0001,2]
[356043324,1741829432855,-810.01068709,0.0001,2]
[356043325,1741829432866,-2488.273,0.0001,2]
[356043326,1741829432876,-857.9,0.0001,2]
[356043327,1741829432987,-23365.62470434,0.0001,2]
[356043328,1741829432998,-2443.39459498,0.0001,2]
[356043329,1741829433009,-2250.17852038,0.0001,2]
[356043335,1741829438368,-155.1231219,9.973e-05,2]
[356043336,1741829438378,-4379.06340355,0.0001,2]
[356043337,1741829438412,-580.94118481,0.0001,2]
[356043338,1741829438423,-11706.5362278,0.0001,2]
[356043339,1741829438508,-258.46493021,0.0001,2]
[356043340,1741829438519,-963.26438089,0.0001,2]
[356043341,1741829438612,-472.560984,0.0001,2]
[356043348,1741829440711,-1564.34766012,0.0001,2]
[356043349,1741829440722,-1126.49222247,0.0001,2]
[356043350,1741829440733,-1005.32904095,0.0001,2]
[356043351,1741829440798,-285.92939251,0.0001,2]
[356043352,1741829440809,-119528.24624181,0.0001,2]
[356043353,1741829440818,-240049.14723923,0.0001,2]
[356043354,1741829440830,-840.0899425,0.0001,2]
[356043355,1741829440900,-955699.8744858,0.0001,2]
[356043363,1741829443489,-1010.88233399,0.0001,2]
[356043366,1741829443500,-341.37291321,0.0001,2]
[356043368,1741829443511,-3576.14921644,0.0001,2]
[356043371,1741829443523,-21863.25003015,0.0001,2]
[356043374,1741829443534,-3783.71183627,0.0001,2]
[356043377,1741829443545,-125183.20855665,0.0001,2]
[356043379,1741829443588,-981.83,0.0001,2]
[356043380,1741829443599,-933.975,0.0001,2]
[356043381,1741829443611,-5953.35363682,0.0001,2]
[356043382,1741829443621,-29410.27183914,0.0001,2]
[356043384,1741829445280,-8516.44760459,0.0001,2]
[356043385,1741829445364,-590.6,0.0001,2]
[356043386,1741829445376,-3702.18769447,0.0001,2]
[356043387,1741829445387,-28999.999982,0.0001,2]
[356043419,1741829446899,-291.76581532,0.0001,2]
[356043425,1741829446973,-1436.74816541,0.0001,2]
[356043426,1741829446984,-7824.64504809,0.0001,2]
[356043427,1741829446995,-612.34305062,0.0001,2]
[356043428,1741829447006,-451.23409272,0.0001,2]
[356043429,1741829447311,-803.89484893,0.0001,2]
[356043430,1741829447323,-2978168.53988073,0.0001,2]
[356043431,1741829447334,-4934.49999913,0.0001,2]
[356043432,1741829447345,-521.796,0.0001,2]
[356043433,1741829447370,-60704.04,0.0001,2]
[356043434,1741829447381,-5150.0,0.0001,2]
[356043435,1741829447406,-1111.0,0.0001,2]
[356043436,1741829447417,-899.2248633,0.0001,2]
[356043439,1741829903524,204.69545322,0.0002,120]
[356043440,1741830039180,300.0,8.904e-05,2]
[356043441,1741830039382,533.7405,8.904e-05,2]
[356043463,1741830631596,-205.249,9.8e-05,2]
[356043464,1741830631606,-357.251,9.8e-05,2]
[356043465,1741830631617,-1166.26282641,9.8e-05,2]
[356043466,1741830631629,-1516.51117359,9.8e-05,2]
[356043467,1741830631638,-150.0,9.832e-05,2]
[356043468,1741830631647,-150.0,9.863e-05,2]
[356043469,1741830631657,-168.9858,9.9e-05,2]
[356043470,1741830631666,-9492.07169197,9.9e-05,2]
[356043471,1741830631703,-1018.879993,9.9e-05,2]
[356043507,1741830637451,-3821.21033686,9.9e-05,2]
[356043509,1741830637477,-170.16607817,9.9e-05,2]
[356043511,1741830637486,-189.11392183,9.9e-05,2]
[356043512,1741830637607,-439.2082749,9.9e-05,2]
[356043513,1741830637619,-337.95213528,9.9e-05,2]
[356043514,1741830637637,-288.77992879,9.9e-05,2]
[356043515,1741830637654,-267.46681366,9.9e-05,2]
[356043516,1741830637666,-1571.50376747,9.9e-05,2]
[356043517,1741830637786,-4300.0,9.9e-05,2]
[356043518,1741830639751,-322.72005869,9.9e-05,2]
[356043519,1741830639825,-258.30489216,9.9e-05,2]
[356043520,1741830639849,-572.72000003,9.9e-05,2]
[356043521,1741830639907,-7694.35960719,9.9e-05,2]
[356043522,1741830639916,-1974.087,9.9e-05,2]
[356043523,1741830639925,-11944.7968,9.9e-05,2]
[356043524,1741830639934,-366.9226,9.9e-05,2]
[356043525,1741830639945,-1000.0,9.9e-05,2]
[356043526,1741830639955,-267.5407,9.9e-05,2]
[356043527,1741830639964,-10494.01283363,9.91e-05,2]
[356043528,1741830639974,-500.73738265,9.973e-05,2]
[356043529,1741830639984,-582.08739903,9.973e-05,2]
[356043530,1741830639993,-500.0,9.999e-05,2]
[356043531,1741830640003,-920375.3301633,0.0001,2]
[356043539,1741830642681,-349.66610001,0.0001,2]
[356043540,1741830642718,-900.39214911,0.0001,2]
[356043541,1741830642729,-420.8916018,0.0001,2]
[356043542,1741830642740,-12053.23380409,0.0001,2]
[356043566,1741830645799,-496.302152,0.0001,2]
[356043567,1741830645823,-313.06330969,0.0001,2]
[356043568,1741830645834,-348.95445286,0.0001,2]
[356043569,1741830645888,-5054.48008577,0.0001,2]
[356043570,1741830646041,-12601.5000001,0.0001,2]
[356043573,1741830733288,-160.25637533,9.9e-05,2]
[356043575,1741831116806,1077.33,0.00020009,120]
[356043576,1741831757755,807.99,0.00020009,120]
[356043583,1741831831915,-724.68,9.8e-05,2]
[356043584,1741831831927,-1124.49855846,9.8e-05,2]
[356043585,1741831831938,-21.22734154,9.8e-05,2]
[356043586,1741831831948,-700.41443312,9.8e-05,2]
[356043587,1741831831958,-485.91806688,9.8e-05,2]
[356043588,1741831831968,-150.0,9.8e-05,2]
[356043589,1741831831977,-186.2797,9.8e-05,2]
[356043590,1741831831986,-1476.42722732,9.8e-05,2]
[356043591,1741831831996,-502.01976113,9.873e-05,2]
[356043592,1741831832006,-150.0,9.899e-05,2]
[356043593,1741831832017,-13354.85489336,9.9e-05,2]
[356043594,1741831832069,-7564.10273858,9.9e-05,2]
[356043595,1741831832080,-8868.67517314,9.9e-05,2]
[356043596,1741831832091,-3336.06246916,9.9e-05,2]
[356043597,1741831832188,-343.17576231,9.9e-05,2]
[356043598,1741831832200,-641.50043925,9.9e-05,2]
[356043599,1741831832255,-3007.73879389,9.9e-05,2]
[356043600,1741831832266,-281.11782662,9.9e-05,2]
[356043601,1741831832277,-1295.00950438,9.9e-05,2]
[356043602,1741831832345,-473.33872835,9.9e-05,2]
[356043611,1741831837664,-250.81575434,9.9e-05,2]
[356043612,1741831837743,-278.35824588,9.9e-05,2]
[356043613,1741831837783,-703.8947963,9.9e-05,2]
[356043614,1741831838006,-661.29448133,9.9e-05,2]
[356043615,1741831838018,-1093.99795647,9.9e-05,2]
[356043620,1741831838070,-2559.33589369,9.9e-05,2]
[356043621,1741831838082,-33695.40492846,9.9e-05,2]
[356043622,1741831838093,-8467.35511109,9.9e-05,2]
[356043632,1741831839770,-1099.5506414,9.9e-05,2]
[356043633,1741831839782,-268.79229105,9.9e-05,2]
[356043634,1741831839793,-2685.66968128,9.9e-05,2]
[356043635,1741831839856,-4534.94174274,9.9e-05,2]
[356043636,1741831839881,-1034.07710914,9.9e-05,2]
[356043637,1741831840105,-270.828,9.9e-05,2]
[356043638,1741831840117,-645.88281121,9.9e-05,2]
[356043639,1741831840674,-61107.90622658,9.9e-05,2]
[356043640,1741831840685,-2878.4599,9.9e-05,2]
[356043641,1741831840694,-15168.1917,9.9e-05,2]
[356043642,1741831840703,-37547.6606,9.9e-05,2]
[356043643,1741831840713,-1971.1557,9.9e-05,2]
[356043644,1741831840722,-201.6688,9.9e-05,2]
[356043645,1741831840732,-500.0,9.999e-05,2]
[356043646,1741831840746,-807.99,9.999e-05,2]
[356043647,1741831840756,-807.99,9.999e-05,2]
[356043648,1741831840766,-807.99,9.999e-05,2]
[356043649,1741831840775,-807.99,9.999e-05,2]
[356043650,1741831840784,-807.99,9.999e-05,2]
[356043651,1741831840794,-807.99,9.999e-05,2]
[356043653,1741831840803,-807.99,9.999e-05,2]
[356043655,1741831840813,-807.99,9.999e-05,2]
[356043656,1741831840823,-807.99,9.999e-05,2]
[356043657,1741831840832,-807.99,9.999e-05,2]
[356043658,1741831840841,-807.99,9.999e-05,2]
[356043659,1741831840851,-807.99,9.999e-05,2]
[356043660,1741831840860,-153.37763579,0.0001,2]
[356043661,1741831840869,-267256.20846798,0.0001,2]
[356043662,1741831840879,-523894.82113984,0.0001,2]
[356043664,1741831842037,-748.79471986,0.0001,2]
[356043694,1741831846090,-6795.41615246,0.0001,2]
[356043695,1741831846189,-493.09706335,0.0001,2]
[356043696,1741831848884,-99544.65260136,0.0001,2]
[356043697,1741831848895,-499.69537679,0.0001,2]
[356043698,1741831849159,-41409.36832648,0.0001,2]
[356043699,1741831849878,-150.0,0.0001,2]
[356043700,1741831851227,-345.92779086,9.8e-05,2]
[356043703,1741831863484,-209.33269334,9.8e-05,2]
[356043731,1741832227826,688.68,8.219e-05,2]
[356043741,1741832342643,-157.0,9.548e-05,2]
[356043743,1741832388608,594.78,0.00020009,120]
[356043746,1741832403313,-281.37687197,9.349e-05,2]
[356043762,1741832515830,-189.74476756,9.125e-05,2]
[356043763,1741832574486,-205.076325,9.12e-05,2]
[356043766,1741832722203,-278.82266,8.919e-05,2]
[356043767,1741832725198,178.5,8.88e-05,2]
[356043768,1741832761888,-21.17734,8.919e-05,2]
[356043769,1741832761913,-128.82266,8.935e-05,2]
[356043771,1741832889549,227.54,8.868e-05,2]
[356043772,1741832889786,227.54,8.891e-05,2]
[356043773,1741832923364,500.0,8.432e-05,2]
[356043774,1741832930211,-227.54,8.915e-05,2]
[356043775,1741832930234,-21.17734,8.935e-05,2]
[356043776,1741832930258,-101.28266,8.938e-05,2]
[356043778,1741833002266,-126.25734,8.938e-05,2]
[356043780,1741833002294,-150.0,8.944e-05,2]
[356043781,1741833002319,-250.0,8.95e-05,2]
[356043783,1741833002346,-227.54,8.961e-05,2]
[356043784,1741833002372,-227.54,8.985e-05,2]
[356043786,1741833002398,-215.61143371,9.008e-05,2]
[356043787,1741833003569,569.99,0.00020009,120]
[356043796,1741833031921,-11.92856629,9.008e-05,2]
[356043798,1741833031931,-227.54,9.031e-05,2]
[356043799,1741833031941,-227.54,9.055e-05,2]
[356043801,1741833031950,-1908.06561008,9.078e-05,2]
[356043802,1741833032004,-2630.21378546,9.078e-05,2]
[356043803,1741833032014,-2116.50324585,9.078e-05,2]
[356043804,1741833032024,-227.54,9.078e-05,2]
[356043805,1741833032033,-227.54,9.102e-05,2]
[356043806,1741833032043,-413.483675,9.12e-05,2]
[356043807,1741833032053,-226.65523244,9.125e-05,2]
[356043808,1741833032062,-227.54,9.125e-05,2]
[356043809,1741833032071,-227.54,9.148e-05,2]
[356043810,1741833032081,-300.0,9.151e-05,2]
[356043811,1741833032090,-150.0,9.151e-05,2]
[356043812,1741833032100,-60876.17,9.152e-05,2]
[356043813,1741833032109,-227.54,9.172e-05,2]
[356043814,1741833032118,-227.54,9.195e-05,2]
[356043815,1741833032128,-227.54,9.218e-05,2]
[356043816,1741833032137,-227.54,9.242e-05,2]
[356043817,1741833032146,-227.54,9.265e-05,2]
[356043818,1741833032156,-227.54,9.288e-05,2]
[356043819,1741833032165,-227.54,9.312e-05,2]
[356043820,1741833032174,-1718.62312803,9.349e-05,2]
[356043821,1741833032184,-1343.0,9.548e-05,2]
[356043822,1741833032193,-157.21,9.781e-05,2]
[356043823,1741833032203,-422.0109158,9.8e-05,2]
[356043824,1741833032213,-1017.6112,9.8e-05,2]
[356043825,1741833032223,-267.5407,9.8e-05,2]
[356043826,1741833032232,-1456.8066,9.8e-05,2]
[356043827,1741833032242,-5767.9993,9.8e-05,2]
[356043828,1741833032252,-500.0,9.8e-05,2]
[356043829,1741833032262,-1000.0,9.8e-05,2]
[356043830,1741833032272,-229.94727355,9.8e-05,3]
[356043831,1741833032281,-159.0,9.8e-05,3]
[356043832,1741833032291,-150.0,9.811e-05,2]
[356043833,1741833032301,-150.0,9.832e-05,2]
[356043834,1741833032311,-3331.026,9.841e-05,2]
[356043835,1741833032320,-197.428,9.841e-05,2]
[356043836,1741833032329,-200.0,9.841e-05,2]
[356043837,1741833032338,-160.36244584,9.873e-05,2]
[356043838,1741833032348,-351.91297422,9.873e-05,2]
[356043839,1741833032358,-159.1816401,9.873e-05,2]
[356043840,1741833032368,-151.52796563,9.873e-05,2]
[356043841,1741833032377,-500.21571467,9.873e-05,2]
[356043842,1741833032387,-155.35399406,9.873e-05,2]
[356043843,1741833032396,-18783.4039994,9.89e-05,2]
[356043844,1741833032406,-287.64049034,9.899e-05,2]
[356043845,1741833032415,-37158.2182,9.9e-05,2]
[356043846,1741833032426,-29418.4989,9.9e-05,2]
[356043847,1741833032436,-945.9393,9.9e-05,2]
[356043848,1741833032446,-3019.8698,9.9e-05,2]
[356043849,1741833032456,-22771.0604,9.9e-05,2]
[356043850,1741833032466,-1000.0,9.9e-05,2]
[356043851,1741833032475,-205.9611,9.9e-05,2]
[356043852,1741833032485,-21711.02,9.9e-05,2]
[356043853,1741833032494,-5000.0,9.9e-05,2]
[356043854,1741833032504,-482.67,9.969e-05,2]
[356043855,1741833032519,-500.41403745,9.973e-05,2]
[356043856,1741833032528,-160.34200427,9.973e-05,2]
[356043857,1741833032538,-160.38067801,9.973e-05,2]
[356043858,1741833032547,-350.0,9.999e-05,2]
[356043859,1741833032557,-569.99,9.999e-05,2]
[356043860,1741833032566,-569.99,9.999e-05,2]
[356043861,1741833032576,-569.99,9.999e-05,2]
[356043862,1741833032586,-569.99,9.999e-05,2]
[356043863,1741833032601,-569.99,9.999e-05,2]
[356043864,1741833032611,-569.99,9.999e-05,2]
[356043865,1741833032625,-569.99,9.999e-05,2]
[356043866,1741833032635,-569.99,9.999e-05,2]
[356043867,1741833032644,-569.99,9.999e-05,2]
[356043868,1741833032654,-569.99,9.999e-05,2]
[356043869,1741833032663,-461.35429602,9.999e-05,2]
[356043870,1741833032673,-500.0,9.999e-05,2]
[356043871,1741833032682,-500.0,9.999e-05,2]
[356043872,1741833032694,-336.43134763,9.999e-05,2]
[356043873,1741833032703,-230.21386368,9.999e-05,2]
[356043875,1741833032712,-595.50372349,0.0001,2]
[356043877,1741833032721,-359740.70961096,0.0001,2]
[356043879,1741833032730,-292002.800283,0.0001,2]
[356043881,1741833032743,-1247.15688436,0.0001,2]
[356043886,1741833032781,-1285.70283055,0.0001,2]
[356043888,1741833032793,-402.91371413,0.0001,2]
[356043890,1741833032804,-265.26995749,0.0001,2]
[356043906,1741833032952,-614.72573488,0.0001,2]
[356043911,1741833032994,-320.09861389,0.0001,2]
[356043913,1741833033006,-2530.80584458,0.0001,2]
[356043915,1741833033020,-7960.91580602,0.0001,2]
[356043918,1741833037996,-9759.00787238,0.0001,2]
[356043919,1741833038012,-954.23582011,0.0001,2]
[356043920,1741833038166,-2683.6833661,0.0001,2]
[356043921,1741833038177,-481.29871092,0.0001,2]
[356043928,1741833040373,-602.76063078,0.0001,2]
[356043929,1741833040384,-1773.95162136,0.0001,2]
[356043930,1741833040502,-566.12214868,0.0001,2]
[356043931,1741833040514,-1240.35979096,0.0001,2]
[356043932,1741833040553,-12965.64925325,0.0001,2]
[356043933,1741833040564,-478680.72010277,0.0001,2]
[356043934,1741833040574,-312623.68714084,0.0001,2]
[356043935,1741833040586,-558.89350208,0.0001,2]
[356043940,1741833043208,-1000.0,9.8e-05,2]
[356043941,1741833043217,-3944.36932319,0.0001,2]
[356043942,1741833043228,-927.4914,0.0001,2]
[356043969,1741833046196,-4227.5913756,0.0001,2]
[356043971,1741833352844,654.24,8.219e-05,2]
[356043975,1741833428683,715.0,0.00020011,120]
[356043981,1741833599709,500.0,0.00020009,120]
[356043984,1741833779399,-160.25391245,9.491e-05,2]
[356043988,1741833831825,-150.0,9.443e-05,2]
[356043993,1741834232391,-1544.26314497,9.257e-05,2]
[356043994,1741834232415,-601.54859924,9.257e-05,2]
[356043995,1741834232426,-1036.18343046,9.257e-05,2]
[356043996,1741834232561,-1917.29626969,9.257e-05,2]
[356044011,1741834238144,-18800.70855564,9.257e-05,2]
[356044012,1741834238154,-1000.0,9.353e-05,2]
[356044013,1741834238164,-13.279358,9.443e-05,2]
[356044014,1741834238173,-150.0,9.467e-05,2]
[356044015,1741834238182,-550.0,9.467e-05,2]
[356044016,1741834238192,-89.74608755,9.491e-05,2]
[356044017,1741834238202,-150.0,9.59e-05,2]
[356044018,1741834238211,-550.0,9.59e-05,2]
[356044019,1741834238221,-150.0,9.661e-05,7]
[356044020,1741834238230,-1500.0,9.667e-05,2]
[356044021,1741834238240,-9354.47137917,9.688e-05,2]
[356044022,1741834238252,-5956.58862083,9.688e-05,2]
[356044023,1741834238261,-169.17,9.729e-05,2]
[356044024,1741834238271,-150.0,9.781e-05,2]
[356044025,1741834238280,-500.0,9.8e-05,2]
[356044026,1741834238432,-1993.21659044,9.807e-05,2]
[356044027,1741834238459,-6.78340956,9.807e-05,2]
[356044028,1741834238469,-150.0,9.899e-05,2]
[356044029,1741834238478,-131.92194601,9.9e-05,2]
[356044030,1741834238490,-258.65645399,9.9e-05,2]
[356044031,1741834238499,-1793.35778685,9.9e-05,2]
[356044032,1741834238510,-5358.0055218,9.9e-05,2]
[356044034,1741834238547,-941.57868834,9.9e-05,2]
[356044035,1741834238559,-5805.96,9.9e-05,2]
[356044036,1741834238583,-8421.95002001,9.9e-05,2]